bitfinex/quotes_BTCUSD_20240715
["timestamp","ask_amount","ask_price","bid_price","bid_amount"]
[1721075899821,0.28325214,63755.0,63754.0,0.15897638]
[1721075899822,0.37722617,63755.0,63754.0,0.15897638]
[1721075900024,0.28325214,63755.0,63754.0,0.15897638]
[1721075900245,0.28325214,63755.0,63754.0,0.20897638]
[1721075900246,0.40071968,63755.0,63754.0,0.20897638]
[1721075900452,0.28325214,63755.0,63754.0,0.20897638]
[1721075901528,0.37722905,63755.0,63754.0,0.20897638]
[1721075901882,0.28325214,63755.0,63754.0,0.20897638]
[1721075902710,0.37723061,63755.0,63754.0,0.20897638]
[1721075902915,0.37723061,63755.0,63754.0,0.37897638]
[1721075903242,0.37723061,63755.0,63754.0,0.20897638]
[1721075903455,0.37723061,63755.0,63754.0,0.42481253]
[1721075903658,0.24826015,63755.0,63754.0,1.03416953]
[1721075903826,0.06337541,63755.0,63754.0,1.40787453]
[1721075904025,0.0469587,63757.0,63756.0,0.781495]
[1721075904227,0.0469587,63757.0,63756.0,1.252037]
[1721075904228,0.11101726,63757.0,63756.0,1.252037]
[1721075904385,0.0469587,63757.0,63756.0,1.565732]
[1721075905467,0.00083,63762.0,63761.0,1.47268415]
[1721075905713,0.00083,63762.0,63761.0,1.69523653]
[1721075906301,0.00084,63768.0,63767.0,1.254602]
[1721075906501,0.00084,63768.0,63767.0,1.568243]
[1721075907998,0.00084,63768.0,63767.0,1.582243]
[1721075908199,0.00084,63768.0,63767.0,1.981884]
[1721075909488,0.00084,63768.0,63767.0,1.995884]
[1721075909690,0.00084,63768.0,63767.0,2.009884]
[1721075911787,0.00084,63768.0,63767.0,1.959884]
[1721075914466,0.00084,63768.0,63767.0,2.00572015]
[1721075916715,0.00084,63768.0,63767.0,1.70457915]
[1721075918222,0.00084,63768.0,63767.0,1.64207915]
[1721075920223,0.00084,63768.0,63767.0,1.366243]
[1721075921081,0.00084,63768.0,63767.0,1.64207915]
[1721075921258,0.00084,63768.0,63767.0,2.00572015]
[1721075921623,0.00084,63768.0,63767.0,2.05572015]
[1721075921822,0.00084,63768.0,63767.0,2.00572015]
[1721075922196,0.00084,63768.0,63767.0,2.05572015]
[1721075922401,0.00084,63768.0,63767.0,2.04172015]
[1721075922637,0.00084,63768.0,63767.0,2.02772015]
[1721075922843,0.00084,63768.0,63767.0,2.05572015]
[1721075923259,0.00084,63768.0,63767.0,2.02772015]
[1721075923444,0.00084,63768.0,63767.0,2.04172015]
[1721075923688,0.00084,63768.0,63767.0,2.05572015]
[1721075925580,0.00084,63768.0,63767.0,2.00572015]
[1721075926131,0.00084,63768.0,63767.0,2.83127906]
[1721075926343,0.00084,63768.0,63767.0,2.91727906]
[1721075926746,0.00084,63768.0,63767.0,2.93127906]
[1721075927445,0.00084,63768.0,63767.0,2.90327906]
[1721075927668,0.00084,63768.0,63767.0,2.93127906]
[1721075929258,0.00084,63768.0,63767.0,2.28983806]
[1721075929415,0.00084,63768.0,63767.0,2.30383806]
[1721075929616,0.00084,63768.0,63767.0,2.31783806]
[1721075929817,0.00084,63768.0,63767.0,2.26783806]
[1721075930259,0.00084,63768.0,63767.0,2.15572015]
[1721075930460,0.00084,63768.0,63767.0,2.10572015]
[1721075930618,0.00084,63768.0,63767.0,2.09172015]
[1721075930820,0.00084,63768.0,63767.0,1.333843]
[1721075931100,0.00084,63768.0,63767.0,1.47257915]
[1721075931759,0.00084,63768.0,63767.0,1.48657915]
[1721075932443,0.00084,63768.0,63767.0,1.50057915]
[1721075932841,0.00084,63768.0,63767.0,1.48657915]
[1721075932994,0.00084,63768.0,63767.0,1.92592015]
[1721075933201,0.00084,63768.0,63767.0,1.98992015]
[1721075933406,0.00084,63768.0,63767.0,1.95392015]
[1721075933825,0.00084,63768.0,63767.0,1.93992015]
[1721075934033,0.00084,63768.0,63767.0,1.97592015]
[1721075934230,0.00084,63768.0,63767.0,1.95392015]
[1721075934495,0.00084,63768.0,63767.0,2.00392015]
[1721075934674,0.00084,63768.0,63767.0,2.05392015]
[1721075934971,0.00084,63768.0,63767.0,2.41756115]
[1721075935110,0.00084,63768.0,63767.0,2.51756115]
[1721075935537,0.00084,63768.0,63767.0,2.18992015]
[1721075935878,0.00084,63768.0,63767.0,2.20392015]
[1721075938696,0.00084,63768.0,63767.0,2.36603806]
[1721075939198,0.00084,63768.0,63767.0,2.67967906]
[1721075939410,0.00084,63768.0,63767.0,2.36603806]
[1721075939806,0.00084,63768.0,63767.0,2.31603806]
[1721075939980,0.00084,63768.0,63767.0,2.30203806]
[1721075940182,0.00084,63768.0,63767.0,2.33803806]
[1721075940389,0.00084,63768.0,63767.0,2.35203806]
[1721075940588,0.00084,63768.0,63767.0,2.36603806]
[1721075941212,0.00084,63768.0,63767.0,2.35203806]
[1721075941411,0.00084,63768.0,63767.0,2.36603806]
[1721075942239,0.00084,63768.0,63767.0,2.31603806]
[1721075942355,0.00084,63768.0,63767.0,2.36603806]
[1721075943910,0.00084,63768.0,63767.0,1.91422015]
[1721075944136,0.00084,63768.0,63767.0,0.911102]
[1721075944358,0.00084,63768.0,63767.0,0.81329715]
[1721075944762,0.00084,63768.0,63767.0,0.84529715]
[1721075944982,0.00084,63768.0,63767.0,1.15893815]
[1721075945182,0.00084,63768.0,63767.0,1.17293815]
[1721075945593,0.00084,63768.0,63767.0,1.11293815]
[1721075945794,0.00084,63768.0,63767.0,1.12693815]
[1721075946076,0.00084,63768.0,63767.0,1.11293815]
[1721075946077,0.07584,63768.0,63767.0,1.11293815]
[1721075946280,0.00084,63768.0,63767.0,1.50057915]
[1721075946506,0.00084,63768.0,63767.0,1.17293815]
[1721075946507,0.07584,63768.0,63767.0,1.17293815]
[1721075946954,0.07584,63768.0,63767.0,1.18693815]
[1721075947367,0.07584,63768.0,63767.0,1.50057915]
[1721075947879,0.07584,63768.0,63767.0,1.48657915]
[1721075948237,0.07584,63768.0,63767.0,1.47257915]
[1721075948447,0.07584,63768.0,63767.0,1.15893815]
[1721075948624,0.07584,63768.0,63767.0,1.12693815]
[1721075948832,0.07584,63768.0,63767.0,1.11293815]
[1721075949035,0.07584,63768.0,63767.0,1.17293815]
[1721075949263,0.07584,63768.0,63767.0,0.32883615]
[1721075949264,0.14034,63768.0,63767.0,0.32883615]
[1721075949609,0.16756369,63768.0,63767.0,0.34283615]
[1721075949929,0.20304689,63768.0,63767.0,0.34283615]
[1721075950366,0.16756369,63768.0,63767.0,0.34283615]
[1721075950500,0.14034,63768.0,63767.0,0.34283615]
[1721075950702,0.17109167,63768.0,63767.0,0.34283615]
[1721075951021,0.17109167,63768.0,63767.0,0.10883615]
[1721075951369,0.17109167,63768.0,63767.0,0.09483615]
[1721075951577,0.17109167,63768.0,63767.0,0.32883615]
[1721075952288,0.17109167,63768.0,63767.0,0.85929715]
[1721075952289,0.14034,63768.0,63767.0,0.85929715]
[1721075952498,0.14034,63768.0,63767.0,1.17293815]
[1721075952499,0.07584,63768.0,63767.0,1.17293815]
[1721075952710,0.07584,63768.0,63767.0,1.50057915]
[1721075952916,0.07584,63768.0,63767.0,1.48657915]
[1721075953323,0.07584,63768.0,63767.0,1.50057915]
[1721075954493,0.07584,63768.0,63767.0,1.48657915]
[1721075954838,0.07584,63768.0,63767.0,1.50057915]
[1721075958906,0.07584,63768.0,63767.0,1.44057915]
[1721075959327,0.07584,63768.0,63767.0,1.50057915]
[1721075964266,0.07584,63768.0,63767.0,1.44057915]
[1721075965286,0.13630017,63768.0,63767.0,1.44057915]
[1721075966112,0.13635794,63768.0,63767.0,1.44057915]
[1721075969166,0.19655794,63768.0,63767.0,0.95693815]
[1721075969342,0.1655621,63768.0,63767.0,0.07383615]
[1721075969554,0.35645403,63768.0,63767.0,0.07383615]
[1721075969744,0.35647779,63768.0,63767.0,0.07383615]
[1721075970557,0.35647779,63768.0,63767.0,0.10883615]
[1721075970757,0.47391409,63768.0,63767.0,0.10883615]
[1721075971005,0.47391409,63768.0,63767.0,0.12283615]
[1721075971150,0.35647779,63768.0,63767.0,0.10883615]
[1721075972133,0.35647779,63768.0,63767.0,0.12283615]
[1721075972468,0.35647779,63768.0,63767.0,0.10883615]
[1721075972668,0.22256118,63768.0,63763.0,0.000913]
[1721075973027,0.92314,63764.0,63763.0,0.000913]
[1721075973224,1.16786118,63764.0,63763.0,0.000913]
[1721075973579,1.26786118,63764.0,63763.0,0.000913]
[1721075974187,0.609499,63762.0,63761.0,0.08105238]
[1721075974383,0.609499,63762.0,63754.0,0.000924]
[1721075974384,0.78425,63755.0,63754.0,0.000924]
[1721075974602,1.24497118,63755.0,63754.0,0.000924]
[1721075974789,1.26797118,63755.0,63754.0,0.000924]
[1721075974986,0.46072118,63755.0,63754.0,0.000924]
[1721075975593,0.53106051,63755.0,63754.0,0.000924]
[1721075975794,0.53218464,63755.0,63754.0,0.000924]
[1721075976047,0.46184553,63755.0,63754.0,0.010924]
[1721075976206,0.50871908,63755.0,63754.0,0.010924]
[1721075976665,0.46284553,63755.0,63754.0,0.008924]
[1721075976870,0.42735647,63755.0,63754.0,0.008924]
[1721075977067,0.42735647,63755.0,63754.0,0.018924]
[1721075977517,0.46294144,63755.0,63754.0,0.018924]
[1721075977846,0.53325178,63755.0,63754.0,0.018924]
[1721075978266,0.50978651,63755.0,63754.0,0.018924]
[1721075978623,0.33129711,63755.0,63754.0,0.018924]
[1721075978994,0.28562891,63755.0,63754.0,0.018924]
[1721075979190,0.41603908,63755.0,63754.0,0.018924]
[1721075979614,0.4160425,63755.0,63754.0,0.018924]
[1721075980368,0.9095925,63755.0,63754.0,0.018924]
[1721075980936,0.87378569,63755.0,63754.0,0.018924]
[1721075981347,1.50118569,63755.0,63754.0,0.018924]
[1721075981541,1.53678098,63755.0,63754.0,0.018924]
[1721075982153,1.38170193,63755.0,63754.0,0.018924]
[1721075982353,1.53445987,63755.0,63754.0,0.018924]
[1721075982778,1.22075987,63755.0,63754.0,0.018924]
[1721075983219,1.09158047,63755.0,63754.0,0.018924]
[1721075985545,1.09154498,63755.0,63754.0,0.018924]
[1721075986444,1.53398699,63755.0,63754.0,0.018924]
[1721075986647,1.58077382,63755.0,63754.0,0.018924]
[1721075986779,1.53398699,63755.0,63754.0,0.018924]
[1721075987380,1.58077382,63755.0,63754.0,0.018924]
[1721075987764,1.53398699,63755.0,63754.0,0.018924]
[1721075988856,1.53360231,63755.0,63754.0,0.018924]
[1721075989709,1.4980154,63755.0,63754.0,0.018924]
[1721075989912,1.53360588,63755.0,63754.0,0.018924]
[1721075990113,1.21990588,63755.0,63754.0,0.018924]
[1721075992165,0.30689407,63755.0,63754.0,0.018924]
[1721075992366,0.30689407,63755.0,63754.0,0.11476015]
[1721075992367,0.28389407,63755.0,63754.0,0.11476015]
[1721075992590,0.22515664,63755.0,63754.0,0.06476015]
[1721075992790,0.2837352,63755.0,63754.0,0.06782368]
[1721075993221,0.2837352,63755.0,63754.0,0.06476015]
[1721075994385,0.2837352,63755.0,63754.0,0.06782368]
[1721075994881,0.2837352,63755.0,63754.0,0.06476015]
[1721075995184,0.2848087,63755.0,63754.0,0.06476015]
[1721075995394,0.22515664,63755.0,63754.0,0.06476015]
[1721075995622,0.2848087,63755.0,63754.0,0.06476015]
[1721075996174,0.22515664,63755.0,63754.0,0.06476015]
[1721075996378,0.37871311,63755.0,63754.0,0.06476015]
[1721075996780,0.37871397,63755.0,63754.0,0.06476015]
[1721075998742,0.16495664,63755.0,63754.0,0.06476015]
[1721075998942,0.31762457,63755.0,63754.0,0.06782368]
[1721075999188,0.25366793,63755.0,63754.0,0.28782368]
[1721075999464,0.25366793,63755.0,63754.0,0.16782368]
[1721075999629,0.25366793,63755.0,63754.0,0.28782368]
[1721075999828,0.25366793,63755.0,63754.0,0.28476015]
[1721076000166,0.25366793,63755.0,63754.0,0.16476015]
[1721076000375,0.25366793,63755.0,63754.0,0.11782368]
[1721076000538,0.25366793,63755.0,63754.0,0.06782368]
[1721076001172,0.25388562,63755.0,63754.0,0.11782368]
[1721076001373,0.25388562,63755.0,63754.0,0.16782368]
[1721076001574,0.25388562,63755.0,63754.0,0.28782368]
[1721076001767,0.25388126,63755.0,63754.0,0.16476015]
[1721076002037,0.25388126,63755.0,63754.0,0.11782368]
[1721076002391,0.28944541,63755.0,63754.0,0.28782368]
[1721076002600,0.28944541,63755.0,63754.0,0.28476015]
[1721076002811,0.28944541,63755.0,63754.0,0.11476015]
[1721076002971,0.28944541,63755.0,63754.0,0.11782368]
[1721076003190,0.28944541,63755.0,63754.0,0.06782368]
[1721076003403,0.28944541,63755.0,63754.0,0.11476015]
[1721076003994,0.28944541,63755.0,63754.0,0.11782368]
[1721076004195,0.28912043,63755.0,63754.0,0.06782368]
[1721076004399,0.28912043,63755.0,63754.0,0.11476015]
[1721076004820,0.28912043,63755.0,63754.0,0.06476015]
[1721076004968,0.28912043,63755.0,63754.0,0.11476015]
[1721076005559,0.28912043,63755.0,63754.0,0.11782368]
[1721076006179,0.28912043,63755.0,63754.0,0.11476015]
[1721076006379,0.28912043,63755.0,63754.0,0.11782368]
[1721076006727,0.28912043,63755.0,63754.0,0.11476015]
[1721076007759,0.13656415,63755.0,63754.0,0.11476015]
[1721076007988,0.13656415,63755.0,63754.0,0.11782368]
[1721076007989,0.18893982,63755.0,63754.0,0.11782368]
[1721076008222,0.28893982,63755.0,63754.0,0.28476015]
[1721076009158,0.29083012,63755.0,63754.0,0.28476015]
[1721076010428,0.29083012,63755.0,63754.0,0.06476015]
[1721076010624,0.29083012,63755.0,63754.0,0.018924]
[1721076010625,0.61148012,63755.0,63754.0,0.018924]
[1721076010804,0.65831899,63755.0,63754.0,0.018924]
[1721076011032,0.84123487,63755.0,63754.0,0.018924]
[1721076011151,1.3287997,63755.0,63754.0,0.018924]
[1721076011548,1.32880384,63755.0,63754.0,0.018924]
[1721076011962,1.01510384,63755.0,63754.0,0.018924]
[1721076012169,0.92134288,63755.0,63754.0,0.018924]
[1721076012575,1.23504288,63755.0,63754.0,0.018924]
[1721076012774,1.35224408,63755.0,63754.0,0.018924]
[1721076012979,1.54874288,63755.0,63754.0,0.018924]
[1721076013175,1.54974288,63755.0,63754.0,0.018924]
[1721076014251,1.68894001,63755.0,63754.0,0.018924]
[1721076014861,1.54804633,63755.0,63754.0,0.018924]
[1721076015068,1.5643355,63755.0,63754.0,0.018924]
[1721076015402,1.54804633,63755.0,63754.0,0.018924]
[1721076016203,1.70655172,63755.0,63754.0,0.018924]
[1721076017094,1.54804633,63755.0,63754.0,0.018924]
[1721076017495,1.54681596,63755.0,63754.0,0.018924]
[1721076018485,1.54581596,63755.0,63754.0,0.010924]
[1721076018888,1.54681596,63755.0,63754.0,0.010924]
[1721076019132,1.54581596,63755.0,63754.0,0.010924]
[1721076019387,1.58525197,63755.0,63754.0,0.001924]
[1721076019592,1.58725197,63755.0,63754.0,0.001924]
[1721076019794,1.58725197,63755.0,63754.0,0.000924]
[1721076020214,1.58625197,63755.0,63754.0,0.000924]
[1721076020689,1.58625197,63755.0,63754.0,0.001924]
[1721076020690,1.52000269,63755.0,63754.0,0.001924]
[1721076020892,1.57567218,63755.0,63754.0,0.001924]
[1721076021161,1.42975016,63755.0,63754.0,0.001924]
[1721076021365,1.57418666,63755.0,63754.0,0.001924]
[1721076021903,1.58618666,63755.0,63754.0,0.002924]
[1721076022139,1.56818666,63755.0,63754.0,0.000924]
[1721076022550,1.56918666,63755.0,63754.0,0.000924]
[1721076022755,1.72782877,63755.0,63754.0,0.000924]
[1721076022950,1.72682877,63755.0,63754.0,0.000924]
[1721076023155,1.42012877,63755.0,63754.0,0.001924]
[1721076023377,1.26348666,63755.0,63754.0,0.000924]
[1721076023579,1.42274732,63755.0,63754.0,0.000924]
[1721076023804,1.42374732,63755.0,63754.0,0.000924]
[1721076024001,1.26510258,63755.0,63754.0,0.000924]
[1721076024159,1.20210258,63755.0,63754.0,0.000924]
[1721076024617,0.19144657,63755.0,63754.0,0.064624]
[1721076024819,0.19144657,63755.0,63754.0,0.11046015]
[1721076024960,0.30893597,63755.0,63754.0,0.11046015]
[1721076025364,0.18944657,63755.0,63754.0,0.11046015]
[1721076025562,0.18144657,63755.0,63754.0,0.11046015]
[1721076025852,0.18144657,63755.0,63754.0,0.11446015]
[1721076026625,0.28144657,63755.0,63754.0,0.11446015]
[1721076028251,0.28144657,63755.0,63754.0,0.11752368]
[1721076028865,0.39892608,63755.0,63754.0,0.11752368]
[1721076029064,0.29773234,63755.0,63754.0,0.11752368]
[1721076030160,0.41520613,63755.0,63754.0,0.28752368]
[1721076030355,0.41747716,63755.0,63754.0,0.28446015]
[1721076030852,0.41747396,63755.0,63754.0,0.28446015]
[1721076031244,0.30000337,63755.0,63754.0,0.33446015]
[1721076031406,0.05722254,63755.0,63754.0,0.92941715]
[1721076031617,0.05722254,63755.0,63754.0,1.30312215]
[1721076031618,0.06541451,63755.0,63754.0,1.30312215]
[1721076031819,0.00902197,63755.0,63754.0,1.61682715]
[1721076032014,0.00083,63755.0,63754.0,1.61682715]
[1721076032212,0.00083,63755.0,63754.0,1.61282715]
[1721076032394,0.00083,63755.0,63754.0,1.61482715]
[1721076032598,0.00083,63755.0,63754.0,1.93053215]
[1721076032898,0.00083,63755.0,63754.0,1.92853215]
[1721076033132,0.00083,63755.0,63754.0,1.93653215]
[1721076033133,0.00183,63755.0,63754.0,1.93653215]
[1721076033335,0.00083,63755.0,63754.0,1.92653215]
[1721076033569,0.00083,63755.0,63754.0,1.94053215]
[1721076033570,0.00183,63755.0,63754.0,1.94053215]
[1721076033790,0.00283,63755.0,63754.0,1.94853215]
[1721076033937,0.00283,63755.0,63754.0,1.94053215]
[1721076034159,0.00183,63755.0,63754.0,1.92653215]
[1721076035583,0.00183,63755.0,63754.0,1.94053215]
[1721076035813,0.00283,63755.0,63754.0,1.95153215]
[1721076036257,0.00083,63755.0,63754.0,1.92653215]
[1721076036485,0.00083,63755.0,63754.0,1.95153215]
[1721076036486,0.00183,63755.0,63754.0,1.95153215]
[1721076036724,0.00183,63755.0,63754.0,2.00153215]
[1721076038740,0.00183,63755.0,63754.0,1.63782715]
[1721076040563,0.00183,63755.0,63754.0,1.62382715]
[1721076041145,0.00183,63755.0,63754.0,1.63782715]
[1721076041765,0.00083,63755.0,63754.0,1.62682715]
[1721076042171,0.00183,63755.0,63754.0,1.63582715]
[1721076042557,0.00183,63755.0,63754.0,1.62182715]
[1721076042964,0.00183,63755.0,63754.0,1.64211315]
[1721076043363,0.00183,63755.0,63754.0,1.62811315]
[1721076043858,0.00183,63755.0,63754.0,1.64211315]
[1721076050567,0.2498,63808.0,63770.0,0.05]
[1721076050772,0.21154893,63801.0,63791.0,0.08105238]
[1721076050984,0.03342322,63801.0,63791.0,0.08105238]
[1721076051176,0.06218322,63801.0,63792.0,0.00306353]
[1721076052595,0.16218322,63801.0,63792.0,0.00306353]
[1721076052765,0.16218322,63801.0,63785.0,0.00306353]
[1721076052962,0.16634707,63801.0,63785.0,0.00306353]
[1721076053192,0.16634707,63801.0,63792.0,0.001]
[1721076053436,0.20805058,63801.0,63793.0,0.00306353]
[1721076053635,0.20805058,63801.0,63792.0,0.001]
[1721076053857,0.20888673,63801.0,63792.0,0.002]
[1721076054051,0.30316673,63801.0,63792.0,0.002]
[1721076055011,0.29816673,63801.0,63792.0,0.001]
[1721076055217,0.28916673,63801.0,63792.0,0.001]
[1721076055371,0.30316673,63801.0,63792.0,0.001]
[1721076055572,0.28916673,63801.0,63792.0,0.001]
[1721076055973,0.30316673,63801.0,63792.0,0.001]
[1721076056191,0.19488673,63801.0,63792.0,0.001]
[1721076056639,0.20388673,63801.0,63776.0,0.00306353]
[1721076056862,0.20388673,63801.0,63784.0,0.4863143]
[1721076057048,0.18988673,63801.0,63785.0,0.00306353]
[1721076057242,0.36062573,63801.0,63792.0,0.001]
[1721076057748,0.18988673,63801.0,63776.0,0.00306353]
[1721076057903,0.18988673,63801.0,63784.0,0.4863143]
[1721076058108,0.18988673,63801.0,63775.0,0.08105238]
[1721076058109,0.18988673,63801.0,63776.0,0.00306353]
[1721076058310,0.09121071,63800.0,63775.0,0.08105238]
[1721076058534,0.09361448,63778.0,63775.0,0.08105238]
[1721076058716,0.05150659,63777.0,63775.0,0.08105238]
[1721076058916,0.03884156,63776.0,63775.0,0.08105238]
[1721076059199,0.12431929,63776.0,63775.0,0.08105238]
[1721076059409,0.16184156,63776.0,63775.0,0.08105238]
[1721076059590,0.29438256,63776.0,63775.0,0.08105238]
[1721076060285,0.3897778,63776.0,63775.0,0.08105238]
[1721076060464,0.4397778,63776.0,63775.0,0.08105238]
[1721076060711,0.40239151,63776.0,63775.0,0.08105238]
[1721076060923,0.49552254,63776.0,63775.0,0.08105238]
[1721076061277,0.45352254,63776.0,63775.0,0.08205238]
[1721076061477,0.49091778,63776.0,63775.0,0.08205238]
[1721076061677,0.49091778,63776.0,63775.0,0.08105238]
[1721076061678,0.52491778,63776.0,63775.0,0.08105238]
[1721076062108,0.53418945,63776.0,63775.0,0.08105238]
[1721076062380,0.62783631,63776.0,63775.0,0.08105238]
[1721076062560,0.62784358,63776.0,63775.0,0.08105238]
[1721076062764,0.43418994,63776.0,63775.0,0.08105238]
[1721076062927,0.51704322,63776.0,63775.0,0.08105238]
[1721076063276,0.63484358,63776.0,63775.0,0.08105238]
[1721076063695,0.54744834,63776.0,63775.0,0.08105238]
[1721076063904,0.4537947,63776.0,63775.0,0.08105238]
[1721076064122,0.5037947,63776.0,63775.0,0.08105238]
[1721076064336,0.49118994,63776.0,63775.0,0.08105238]
[1721076064477,0.58484358,63776.0,63775.0,0.08105238]
[1721076065282,0.59744834,63776.0,63775.0,0.08105238]
[1721076065477,0.08739524,63773.0,63768.0,0.08105238]
[1721076065682,0.10770362,63771.0,63768.0,0.08105238]
[1721076065895,0.15116308,63772.0,63760.0,0.14675238]
[1721076065896,0.03739524,63765.0,63760.0,0.08105238]
[1721076066108,0.12813448,63764.0,63760.0,0.08105238]
[1721076066370,0.21785973,63763.0,63761.0,0.0999]
[1721076066608,0.15112631,63762.0,63761.0,0.0949]
[1721076066809,0.25112631,63762.0,63761.0,0.0949]
[1721076067940,0.25112631,63762.0,63761.0,0.0959]
[1721076068274,0.25112631,63762.0,63760.0,0.08105238]
[1721076068480,0.21725973,63761.0,63760.0,0.08105238]
[1721076068676,0.24025973,63761.0,63760.0,0.08105238]
[1721076068881,0.32084585,63761.0,63760.0,0.08105238]
[1721076069079,0.32074585,63761.0,63760.0,0.08105238]
[1721076069348,0.32024585,63761.0,63760.0,0.08105238]
[1721076069502,0.24985316,63761.0,63760.0,0.08105238]
[1721076069908,0.38190532,63761.0,63754.0,0.081224]
[1721076070122,0.38190532,63761.0,63754.0,0.000924]
[1721076070123,0.07041361,63757.0,63754.0,0.000924]
[1721076070401,0.19849139,63756.0,63754.0,0.000924]
[1721076070608,0.11785973,63755.0,63754.0,0.06313904]
[1721076070801,0.12807369,63755.0,63754.0,0.000924]
[1721076070970,0.15107369,63755.0,63754.0,0.000924]
[1721076071566,0.06172055,63755.0,63754.0,0.000924]
[1721076071772,0.14706677,63755.0,63754.0,0.001924]
[1721076072009,0.31748142,63755.0,63754.0,0.001924]
[1721076072425,0.24706677,63755.0,63754.0,0.001924]
[1721076072642,0.31748142,63755.0,63754.0,0.001924]
[1721076073293,0.31748142,63755.0,63754.0,0.000924]
[1721076073509,0.31747565,63755.0,63754.0,0.000924]
[1721076073683,0.31847565,63755.0,63754.0,0.001924]
[1721076073890,0.31947565,63755.0,63754.0,0.001924]
[1721076074553,0.24906677,63755.0,63754.0,0.01750904]
[1721076074940,0.2498295,63755.0,63754.0,0.01750904]
[1721076075174,0.2498295,63755.0,63754.0,0.001924]
[1721076075353,0.24983278,63755.0,63754.0,0.001924]
[1721076076008,0.22683278,63755.0,63754.0,0.001924]
[1721076076177,0.22683278,63755.0,63754.0,0.13452876]
[1721076076379,0.22683278,63755.0,63754.0,0.27942876]
[1721076076380,0.12683278,63755.0,63754.0,0.27942876]
[1721076076582,0.12683278,63755.0,63754.0,1.15699927]
[1721076076583,0.03725248,63755.0,63754.0,1.15699927]
[1721076076760,0.02703852,63755.0,63754.0,1.15699927]
[1721076077159,0.02703852,63755.0,63754.0,1.1600628]
[1721076077502,0.02603852,63755.0,63754.0,1.1590628]
[1721076077854,0.02703852,63755.0,63754.0,1.1600628]
[1721076078004,0.002,63755.0,63754.0,1.1600628]
[1721076078190,0.001,63755.0,63754.0,1.1590628]
[1721076078409,0.001,63755.0,63754.0,1.15599927]
[1721076078410,0.02634086,63755.0,63754.0,1.15599927]
[1721076078863,0.02534086,63755.0,63754.0,1.15599927]
[1721076079052,0.17038097,63766.0,63754.0,1.15599927]
[1721076079053,0.17038097,63766.0,63763.0,0.01260476]
[1721076079271,0.17038097,63766.0,63765.0,0.08105238]
[1721076079522,0.11528975,63766.0,63765.0,0.08105238]
[1721076079746,0.30913104,63766.0,63765.0,0.08005238]
[1721076080009,0.28568051,63766.0,63765.0,0.08005238]
[1721076080259,0.21628975,63766.0,63765.0,0.15696825]
[1721076080496,0.22646184,63766.0,63765.0,0.15596825]
[1721076080988,0.22746184,63766.0,63765.0,0.16196825]
[1721076081493,0.14170312,63766.0,63765.0,0.16896825]
[1721076081759,0.29766413,63766.0,63765.0,0.09205238]
[1721076081984,0.30105482,63766.0,63765.0,0.10465714]
[1721076082229,0.30105482,63766.0,63765.0,0.43883584]
[1721076082230,0.22866251,63766.0,63765.0,0.43883584]
[1721076082484,0.12966251,63766.0,63765.0,0.91424831]
[1721076082657,0.04032654,63766.0,63765.0,1.28789931]
[1721076082861,0.04032654,63766.0,63765.0,1.54155031]
[1721076083081,0.02676376,63766.0,63765.0,1.60155031]
[1721076084017,0.02576376,63766.0,63765.0,1.53355031]
[1721076084573,0.02576376,63766.0,63765.0,1.52655031]
[1721076084574,0.02509412,63766.0,63765.0,1.52655031]
[1721076084774,0.00083,63776.0,63775.0,0.1479]
[1721076084980,0.04335473,63776.0,63775.0,0.36155714]
[1721076085184,0.06825329,63776.0,63775.0,0.36155714]
[1721076085395,0.03978408,63776.0,63775.0,0.24055714]
[1721076085591,0.0682529,63776.0,63775.0,0.30496545]
[1721076085815,0.0682529,63776.0,63775.0,0.30396545]
[1721076086335,0.04078408,63776.0,63775.0,0.31596545]
[1721076086570,0.06924648,63776.0,63775.0,0.31596545]
[1721076086975,0.06924648,63776.0,63775.0,0.44857021]
[1721076087299,0.04078408,63776.0,63775.0,0.44857021]
[1721076087586,0.00183,63776.0,63775.0,0.46057021]
[1721076088065,0.04074269,63776.0,63775.0,0.46057021]
[1721076088266,0.02668717,63776.0,63775.0,0.34057021]
[1721076088559,0.02668717,63776.0,63775.0,0.46363374]
[1721076088701,0.04074269,63776.0,63775.0,0.46363374]
[1721076088903,0.06920078,63776.0,63775.0,0.46363374]
[1721076089103,0.04074269,63776.0,63775.0,0.46057021]
[1721076089304,0.04074269,63776.0,63775.0,0.61737121]
[1721076089509,0.02668717,63776.0,63775.0,0.93097321]
[1721076090024,0.02668717,63776.0,63775.0,1.61817721]
[1721076090025,0.00183,63776.0,63775.0,1.61817721]
[1721076090269,0.08036723,63790.0,63789.0,0.60290376]
[1721076090270,0.01,63790.0,63789.0,0.60290376]
[1721076090501,0.01,63790.0,63789.0,1.06033676]
[1721076090502,0.03386888,63790.0,63789.0,1.06033676]
[1721076090728,0.03386888,63790.0,63789.0,0.88591267]
[1721076090900,0.03336326,63790.0,63789.0,0.88591267]
[1721076091438,0.03336326,63790.0,63789.0,0.88491267]
[1721076091859,0.03336326,63790.0,63789.0,0.75330791]
[1721076092003,0.03336326,63790.0,63789.0,0.88491267]
[1721076092208,0.03336326,63790.0,63789.0,0.89891267]
[1721076092209,0.03436326,63790.0,63789.0,0.89891267]
[1721076092395,0.011,63790.0,63789.0,0.89891267]
[1721076092601,0.011,63790.0,63789.0,0.29700891]
[1721076092808,0.03429973,63790.0,63789.0,0.015]
[1721076093030,0.03429973,63790.0,63789.0,0.09605238]
[1721076093227,0.03429973,63790.0,63789.0,0.09505238]
[1721076093485,0.03429973,63790.0,63789.0,0.12165714]
[1721076093689,0.03429973,63790.0,63789.0,0.23215515]
[1721076093901,0.03429973,63790.0,63789.0,0.13849801]
[1721076094270,0.0344713,63790.0,63789.0,0.13849801]
[1721076095027,0.0344713,63790.0,63789.0,0.21955039]
[1721076095439,0.0344713,63790.0,63789.0,0.10905238]
[1721076096412,0.0344713,63790.0,63789.0,0.028]
[1721076096669,0.1760713,63790.0,63789.0,0.028]
[1721076096896,0.0344713,63790.0,63789.0,0.028]
[1721076097180,0.04872639,63790.0,63789.0,0.028]
[1721076097379,0.04872639,63790.0,63789.0,0.06268048]
[1721076097567,0.04707781,63790.0,63789.0,0.04868048]
[1721076097847,0.04707781,63790.0,63789.0,0.04968048]
[1721076098057,0.04685481,63790.0,63789.0,0.005]
[1721076098382,0.04685481,63790.0,63789.0,0.001]
[1721076098806,0.04685481,63790.0,63789.0,0.006]
[1721076099587,0.04785481,63790.0,63789.0,0.006]
[1721076099792,0.04785481,63790.0,63789.0,0.011]
[1721076100414,0.02525509,63790.0,63789.0,0.011]
[1721076100813,0.04756529,63790.0,63789.0,0.011]